[Event "*** Titled Tuesday Blitz"]
[Site "Chess.com"]
[Date "2021.04.20"]
[Round "3"]
[White "lamomiablanca"]
[Black "Cptn2"]
[Result "0-1"]
[WhiteElo "2405"]
[BlackElo "2608"]
[TimeControl "180+1"]
[EndTime "10:28:04 PDT"]
[Termination "Cptn2 won by resignation"]

1. e4 {[%clk 0:03:00.9]} 1... c5 {[%clk 0:02:59.9]} 2. d3 {[%clk 0:03:00.7]}
2... Nc6 {[%clk 0:02:58.8]} 3. g3 {[%clk 0:03:00.9]} 3... g6 {[%clk 0:02:58.8]}
4. Bg2 {[%clk 0:03:01.1]} 4... Bg7 {[%clk 0:02:59.4]} 5. f4 {[%clk 0:03:01.8]}
5... e6 {[%clk 0:02:57.4]} 6. Nf3 {[%clk 0:03:01.3]} 6... d5 {[%clk 0:02:58.1]}
7. O-O {[%clk 0:02:59.3]} 7... Nge7 {[%clk 0:02:58]} 8. c3 {[%clk 0:02:58.5]}
8... O-O {[%clk 0:02:58]} 9. e5 {[%clk 0:02:58.6]} 9... f6 {[%clk 0:02:57.6]}
10. exf6 {[%clk 0:02:47.4]} 10... Bxf6 {[%clk 0:02:58.5]} 11. Re1 {[%clk
0:02:47.4]} 11... b5 {[%clk 0:02:56.8]} 12. Ne5 {[%clk 0:02:22.8]} 12... Nxe5
{[%clk 0:02:52.9]} 13. fxe5 {[%clk 0:02:23.7]} 13... Bg7 {[%clk 0:02:53]} 14.
Bg5 {[%clk 0:02:14.3]} 14... Qc7 {[%clk 0:02:51.2]} 15. Nd2 {[%clk 0:02:01]}
15... Nc6 {[%clk 0:02:48.5]} 16. Bf4 {[%clk 0:01:33.9]} 16... Bxe5 {[%clk
0:02:33.1]} 17. Bxe5 {[%clk 0:01:01.9]} 17... Nxe5 {[%clk 0:02:34]} 18. Qe2
{[%clk 0:01:01.6]} 18... Nc6 {[%clk 0:02:28.4]} 19. Nf3 {[%clk 0:01:01.4]} 19...
Bd7 {[%clk 0:02:25.9]} 20. d4 {[%clk 0:00:52.7]} 20... c4 {[%clk 0:02:11.3]} 21.
Qd2 {[%clk 0:00:37]} 21... Rf6 {[%clk 0:02:04.6]} 22. Re3 {[%clk 0:00:35]} 22...
Raf8 {[%clk 0:02:03.1]} 23. Rae1 {[%clk 0:00:33.6]} 23... a5 {[%clk 0:02:00]}
24. Ng5 {[%clk 0:00:25]} 24... Qd6 {[%clk 0:01:58.8]} 25. Bh3 {[%clk 0:00:18.4]}
25... Nd8 {[%clk 0:01:58.6]} 26. Qe2 {[%clk 0:00:15.1]} 26... Re8 {[%clk
0:01:56.4]} 27. Nf3 {[%clk 0:00:13.5]} 27... b4 {[%clk 0:01:56.1]} 28. Ne5
{[%clk 0:00:13.5]} 28... Bc8 {[%clk 0:01:55.5]} 29. Rf3 {[%clk 0:00:11.7]} 29...
Rxf3 {[%clk 0:01:53.6]} 30. Qxf3 {[%clk 0:00:12.6]} 30... Rf8 {[%clk 0:01:53.6]}
31. Qe3 {[%clk 0:00:12.4]} 31... a4 {[%clk 0:01:49.5]} 32. Qe2 {[%clk
0:00:09.7]} 32... bxc3 {[%clk 0:01:47.2]} 33. bxc3 {[%clk 0:00:10.6]} 33... Qa3
{[%clk 0:01:46.8]} 34. Qe3 {[%clk 0:00:07.7]} 34... Qb2 {[%clk 0:01:45.8]} 35.
Ng4 {[%clk 0:00:07.7]} 35... h5 {[%clk 0:01:34.3]} 36. Ne5 {[%clk 0:00:06.5]}
36... Qc2 {[%clk 0:01:32.7]} 37. Bg2 {[%clk 0:00:05]} 37... Kg7 {[%clk
0:01:22.8]} 38. Re2 {[%clk 0:00:05.5]} 38... Qf5 {[%clk 0:01:21.9]} 39. Rf2
{[%clk 0:00:05.2]} 39... Qxf2+ {[%clk 0:01:21.7]} 40. Qxf2 {[%clk 0:00:06.1]}
40... Rxf2 {[%clk 0:01:22]} 41. Kxf2 {[%clk 0:00:07]} 41... a3 {[%clk
0:01:16.1]} 42. Ke3 {[%clk 0:00:06.9]} 42... Kf6 {[%clk 0:01:15]} 43. Kd2 {[%clk
0:00:06.8]} 43... Ba6 {[%clk 0:01:14.2]} 44. Kc2 {[%clk 0:00:06.4]} 44... Bb5
{[%clk 0:01:14.5]} 45. Bh3 {[%clk 0:00:04.8]} 45... Ba4+ {[%clk 0:01:14]} 46.
Kd2 {[%clk 0:00:04.7]} 46... g5 {[%clk 0:01:14.7]} 47. Bg2 {[%clk 0:00:03.2]}
47... Be8 {[%clk 0:01:14.6]} 48. Bf3 {[%clk 0:00:02.5]} 48... Bg6 {[%clk
0:01:14.5]} 49. Be2 {[%clk 0:00:03.4]} 49... g4 {[%clk 0:01:13.5]} 50. Bf1
{[%clk 0:00:03.3]} 50... Be4 {[%clk 0:01:13.6]} 51. Be2 {[%clk 0:00:03.5]} 51...
Nf7 {[%clk 0:01:12.9]} 52. Nd7+ {[%clk 0:00:03.8]} 52... Ke7 {[%clk 0:01:12.9]}
53. Nc5 {[%clk 0:00:04.7]} 53... Bf3 {[%clk 0:01:11.2]} 54. Bxf3 {[%clk
0:00:04.7]} 54... gxf3 {[%clk 0:01:11.6]} 55. Ke3 {[%clk 0:00:05.6]} 55... Ng5
{[%clk 0:01:11.9]} 56. h4 {[%clk 0:00:05]} 56... Ne4 {[%clk 0:01:12.2]} 57. Na4
{[%clk 0:00:02.1]} 57... f2 {[%clk 0:01:05.5]} 58. Ke2 {[%clk 0:00:01.6]} 58...
Kf6 {[%clk 0:01:05.4]} 59. Kf1 {[%clk 0:00:01.8]} 59... Kf5 {[%clk 0:01:05.6]}
60. Kg2 {[%clk 0:00:02.4]} 60... Kg4 {[%clk 0:01:04.1]} 61. Nc5 {[%clk
0:00:02.9]} 61... Nxc3 {[%clk 0:01:02.7]} 62. Kxf2 {[%clk 0:00:03.8]} 62... Nxa2
{[%clk 0:01:02.4]} 63. Nxe6 {[%clk 0:00:03.1]} 63... Nb4 {[%clk 0:01:00.6]} 64.
Ng5 {[%clk 0:00:02.7]} 64... a2 {[%clk 0:01:00.5]} 65. Nf3 {[%clk 0:00:03.2]}
65... a1=Q {[%clk 0:01:00.4]} 0-1

[Event "*** Titled Tuesday Blitz"]
[Site "Chess.com"]
[Date "2021.04.20"]
[Round "3"]
[White "TimKett"]
[Black "JAAC2002"]
[Result "0-1"]
[WhiteElo "2244"]
[BlackElo "2505"]
[TimeControl "180+1"]
[EndTime "10:28:04 PDT"]
[Termination "JAAC2002 won on time"]

1. e4 {[%clk 0:03:00.9]} 1... e6 {[%clk 0:03:00]} 2. d4 {[%clk 0:02:59.5]} 2...
d5 {[%clk 0:03:00.3]} 3. Nc3 {[%clk 0:02:59.6]} 3... Bb4 {[%clk 0:03:00.7]} 4.
e5 {[%clk 0:02:59]} 4... c5 {[%clk 0:03:00.9]} 5. a3 {[%clk 0:02:59]} 5... Bxc3+
{[%clk 0:03:01.1]} 6. bxc3 {[%clk 0:02:59]} 6... Qa5 {[%clk 0:03:01.3]} 7. Bd2
{[%clk 0:02:56.6]} 7... Qa4 {[%clk 0:03:01.3]} 8. Qg4 {[%clk 0:02:55.4]} 8... g6
{[%clk 0:02:58.5]} 9. h4 {[%clk 0:02:55.3]} 9... h5 {[%clk 0:02:58.2]} 10. Qf4
{[%clk 0:02:38.9]} 10... Ne7 {[%clk 0:02:54.4]} 11. Qf6 {[%clk 0:02:31.6]} 11...
Rg8 {[%clk 0:02:52.3]} 12. Nf3 {[%clk 0:02:29.1]} 12... Nd7 {[%clk 0:02:42.3]}
13. Qf4 {[%clk 0:02:28.2]} 13... Qxc2 {[%clk 0:02:34.9]} 14. Ng5 {[%clk
0:02:11.5]} 14... Nf5 {[%clk 0:02:28.6]} 15. Rh3 {[%clk 0:02:02.8]} 15... c4
{[%clk 0:02:12.6]} 16. g4 {[%clk 0:01:53.4]} 16... hxg4 {[%clk 0:02:10.9]} 17.
Qxg4 {[%clk 0:01:52.9]} 17... Nb6 {[%clk 0:01:45.5]} 18. h5 {[%clk 0:01:51.5]}
18... gxh5 {[%clk 0:01:37]} 19. Qxh5 {[%clk 0:01:50.1]} 19... Rg6 {[%clk
0:01:11.7]} 20. Qh8+ {[%clk 0:01:41]} 20... Kd7 {[%clk 0:01:11.8]} 21. Rh7
{[%clk 0:01:13.5]} 21... Rxg5 {[%clk 0:00:46.7]} 22. Rxf7+ {[%clk 0:01:02.6]}
22... Kc6 {[%clk 0:00:46.4]} 23. Qf8 {[%clk 0:00:44.2]} 23... Kb5 {[%clk
0:00:07.2]} 24. Qb4+ {[%clk 0:00:35.5]} 24... Ka6 {[%clk 0:00:07.5]} 25. Rb1
{[%clk 0:00:29.9]} 25... Qa4 {[%clk 0:00:06.2]} 26. Qxa4+ {[%clk 0:00:23.3]}
26... Nxa4 {[%clk 0:00:06.2]} 27. Bxg5 {[%clk 0:00:23.9]} 27... Nxc3 {[%clk
0:00:02.9]} 28. Rc1 {[%clk 0:00:20.6]} 28... Ne4 {[%clk 0:00:02.2]} 29. Be3
{[%clk 0:00:18.6]} 29... b6 {[%clk 0:00:02.7]} 30. Rf8 {[%clk 0:00:15.4]} 30...
Bb7 {[%clk 0:00:02.9]} 31. Rxa8 {[%clk 0:00:15.4]} 31... Bxa8 {[%clk 0:00:03.8]}
32. Bh3 {[%clk 0:00:15.4]} 32... Bc6 {[%clk 0:00:03.4]} 33. Bxf5 {[%clk
0:00:15.2]} 33... exf5 {[%clk 0:00:04.3]} 34. f3 {[%clk 0:00:14.6]} 34... Ng3
{[%clk 0:00:03.7]} 35. Kf2 {[%clk 0:00:13.9]} 35... Nh5 {[%clk 0:00:03.9]} 36.
Rh1 {[%clk 0:00:12.7]} 36... Ng7 {[%clk 0:00:04.2]} 37. Rh7 {[%clk 0:00:12.5]}
37... Ne6 {[%clk 0:00:04.5]} 38. Re7 {[%clk 0:00:11.8]} 38... Nd8 {[%clk
0:00:04.5]} 39. e6 {[%clk 0:00:10.3]} 39... Kb5 {[%clk 0:00:04.7]} 40. Bg5
{[%clk 0:00:08.9]} 40... a5 {[%clk 0:00:04.3]} 41. Bf4 {[%clk 0:00:04.1]} 41...
c3 {[%clk 0:00:04.1]} 42. Ke2 {[%clk 0:00:02.5]} 42... Kc4 {[%clk 0:00:04.3]}
43. Bc7 {[%clk 0:00:02.1]} 43... c2 {[%clk 0:00:03.3]} 44. Kd2 {[%clk 0:00:02]}
44... Kb3 {[%clk 0:00:03.8]} 45. Kc1 {[%clk 0:00:01.2]} 45... Nb7 {[%clk
0:00:04.3]} 0-1

[Event "*** Titled Tuesday Blitz"]
[Site "Chess.com"]
[Date "2021.04.20"]
[Round "3"]
[White "MustafayevFarid2004"]
[Black "crescentmoon2411"]
[Result "0-1"]
[WhiteElo "2458"]
[BlackElo "2822"]
[TimeControl "180+1"]
[EndTime "10:28:05 PDT"]
[Termination "crescentmoon2411 won by resignation"]

1. d4 {[%clk 0:03:00.9]} 1... Nf6 {[%clk 0:03:00]} 2. c4 {[%clk 0:03:00.8]} 2...
c5 {[%clk 0:02:59.7]} 3. Nf3 {[%clk 0:02:56.6]} 3... cxd4 {[%clk 0:02:57.8]} 4.
Nxd4 {[%clk 0:02:57.5]} 4... Nc6 {[%clk 0:02:57.3]} 5. Nc3 {[%clk 0:02:57.2]}
5... e6 {[%clk 0:02:56.5]} 6. g3 {[%clk 0:02:54.5]} 6... Bc5 {[%clk 0:02:51.7]}
7. Nb3 {[%clk 0:02:51]} 7... Bb4 {[%clk 0:02:48.4]} 8. Bd2 {[%clk 0:02:32.8]}
8... Ne5 {[%clk 0:02:43.7]} 9. a3 {[%clk 0:02:25]} 9... Bxc3 {[%clk 0:02:40.3]}
10. Bxc3 {[%clk 0:02:24.5]} 10... Nxc4 {[%clk 0:02:40.4]} 11. e4 {[%clk
0:01:54]} 11... Nb6 {[%clk 0:02:18.3]} 12. Bb4 {[%clk 0:01:44]} 12... Nxe4
{[%clk 0:02:03.8]} 13. Qg4 {[%clk 0:01:41.8]} 13... d5 {[%clk 0:01:56.5]} 14. f3
{[%clk 0:01:00.9]} 14... Qg5 {[%clk 0:01:54.8]} 15. Qxg5 {[%clk 0:00:53.8]}
15... Nxg5 {[%clk 0:01:55.7]} 16. Bg2 {[%clk 0:00:51.9]} 16... e5 {[%clk
0:01:42.8]} 17. Rc1 {[%clk 0:00:48]} 17... Bd7 {[%clk 0:01:16.8]} 18. Na5 {[%clk
0:00:46.3]} 18... Rc8 {[%clk 0:01:15.4]} 19. Kf2 {[%clk 0:00:39.4]} 19... Bc6
{[%clk 0:01:09.9]} 20. Rhe1 {[%clk 0:00:28.4]} 20... f6 {[%clk 0:01:05.9]} 21.
f4 {[%clk 0:00:26.4]} 21... Ne4+ {[%clk 0:00:19.2]} 22. Bxe4 {[%clk 0:00:26.1]}
22... dxe4 {[%clk 0:00:20.1]} 23. Nxc6 {[%clk 0:00:22]} 23... Rxc6 {[%clk
0:00:17.6]} 24. Rxc6 {[%clk 0:00:21.8]} 24... bxc6 {[%clk 0:00:18.5]} 25. fxe5
{[%clk 0:00:22.3]} 25... f5 {[%clk 0:00:07.3]} 26. e6 {[%clk 0:00:18.2]} 26...
Nd5 {[%clk 0:00:05.7]} 27. Rc1 {[%clk 0:00:17.3]} 27... Nxb4 {[%clk 0:00:05.3]}
28. axb4 {[%clk 0:00:18.2]} 28... Ke7 {[%clk 0:00:05.9]} 29. Rxc6 {[%clk
0:00:18.9]} 29... Rb8 {[%clk 0:00:06.6]} 30. Rc7+ {[%clk 0:00:15.2]} 30... Kxe6
{[%clk 0:00:06.5]} 31. Rxg7 {[%clk 0:00:13.6]} 31... Rxb4 {[%clk 0:00:07]} 32.
Rxh7 {[%clk 0:00:10.7]} 32... Rxb2+ {[%clk 0:00:07.3]} 33. Ke3 {[%clk
0:00:11.5]} 33... a5 {[%clk 0:00:07.6]} 34. Kd4 {[%clk 0:00:10.7]} 34... Rb4+
{[%clk 0:00:06.8]} 35. Ke3 {[%clk 0:00:08.7]} 35... Rb3+ {[%clk 0:00:07]} 36.
Ke2 {[%clk 0:00:07.3]} 36... a4 {[%clk 0:00:07]} 37. Rh6+ {[%clk 0:00:07.7]}
37... Ke5 {[%clk 0:00:07]} 38. Ra6 {[%clk 0:00:07.8]} 38... a3 {[%clk
0:00:07.6]} 39. Ra5+ {[%clk 0:00:04.9]} 39... Kd4 {[%clk 0:00:07.6]} 40. Ra4+
{[%clk 0:00:03]} 40... Kc3 {[%clk 0:00:08]} 41. h4 {[%clk 0:00:03.4]} 41... Kb2
{[%clk 0:00:08.3]} 42. Kf2 {[%clk 0:00:03.8]} 42... a2 {[%clk 0:00:08.6]} 43. h5
{[%clk 0:00:03.3]} 43... Ra3 {[%clk 0:00:08.7]} 44. Rb4+ {[%clk 0:00:03.8]}
44... Kc3 {[%clk 0:00:08.7]} 0-1

[Event "*** Titled Tuesday Blitz"]
[Site "Chess.com"]
[Date "2021.04.20"]
[Round "3"]
[White "ckgchess"]
[Black "Leo_C"]
[Result "1/2-1/2"]
[WhiteElo "2690"]
[BlackElo "2429"]
[TimeControl "180+1"]
[EndTime "10:28:09 PDT"]
[Termination "Game drawn by repetition"]

1. e4 {[%clk 0:03:00.9]} 1... c6 {[%clk 0:02:59.6]} 2. d4 {[%clk 0:03:01.2]}
2... d5 {[%clk 0:02:59.6]} 3. e5 {[%clk 0:03:01.9]} 3... c5 {[%clk 0:02:59.8]}
4. dxc5 {[%clk 0:03:02.8]} 4... e6 {[%clk 0:02:59.9]} 5. a3 {[%clk 0:03:00.9]}
5... Bxc5 {[%clk 0:03:00.2]} 6. Qg4 {[%clk 0:03:01.1]} 6... Ne7 {[%clk
0:02:53.4]} 7. Nf3 {[%clk 0:03:00.6]} 7... Qb6 {[%clk 0:02:39.4]} 8. Bd3 {[%clk
0:03:00.4]} 8... Bxf2+ {[%clk 0:02:38]} 9. Ke2 {[%clk 0:02:57.5]} 9... Nbc6
{[%clk 0:02:36.8]} 10. Rf1 {[%clk 0:02:32.9]} 10... Nd4+ {[%clk 0:02:07.7]} 11.
Nxd4 {[%clk 0:02:06.9]} 11... Qxd4 {[%clk 0:01:56.1]} 12. Qf3 {[%clk 0:02:06.3]}
12... Qxe5+ {[%clk 0:01:33.2]} 13. Kxf2 {[%clk 0:02:06.1]} 13... O-O {[%clk
0:01:33.8]} 14. Kg1 {[%clk 0:02:05.3]} 14... b6 {[%clk 0:01:27.5]} 15. Nc3
{[%clk 0:02:02.6]} 15... Bb7 {[%clk 0:01:25.6]} 16. Bf4 {[%clk 0:02:02.8]} 16...
Qd4+ {[%clk 0:01:23.2]} 17. Kh1 {[%clk 0:02:02.3]} 17... e5 {[%clk 0:01:13]} 18.
Be3 {[%clk 0:01:27.7]} 18... Qh4 {[%clk 0:01:09.4]} 19. Bf2 {[%clk 0:01:27.8]}
19... Qh6 {[%clk 0:01:01.3]} 20. Be3 {[%clk 0:01:11.8]} 20... Qh4 {[%clk
0:00:59.7]} 21. Qf2 {[%clk 0:01:11.6]} 21... Qh5 {[%clk 0:00:36.6]} 22. Be2
{[%clk 0:01:11.2]} 22... Qg6 {[%clk 0:00:34]} 23. Bd3 {[%clk 0:01:09.8]} 23...
Qh5 {[%clk 0:00:30.2]} 24. Ne2 {[%clk 0:00:51.5]} 24... d4 {[%clk 0:00:25.1]}
25. Bc1 {[%clk 0:00:46.3]} 25... e4 {[%clk 0:00:21.8]} 26. Bc4 {[%clk
0:00:37.7]} 26... e3 {[%clk 0:00:18.5]} 27. Qg3 {[%clk 0:00:33]} 27... Rac8
{[%clk 0:00:16.3]} 28. Nf4 {[%clk 0:00:27.6]} 28... Qe5 {[%clk 0:00:11.3]} 29.
Bd3 {[%clk 0:00:26.2]} 29... Be4 {[%clk 0:00:08.2]} 30. b4 {[%clk 0:00:21.9]}
30... Bxd3 {[%clk 0:00:07]} 31. cxd3 {[%clk 0:00:22.8]} 31... Rc2 {[%clk
0:00:05.9]} 32. a4 {[%clk 0:00:16.8]} 32... Nf5 {[%clk 0:00:05.2]} 33. Qe1
{[%clk 0:00:15.5]} 33... e2 {[%clk 0:00:05]} 34. Rf2 {[%clk 0:00:13.7]} 34...
Re8 {[%clk 0:00:05.2]} 35. b5 {[%clk 0:00:13.8]} 35... Ne3 {[%clk 0:00:05.1]}
36. Nxe2 {[%clk 0:00:11.7]} 36... Ng4 {[%clk 0:00:04.1]} 37. Rf1 {[%clk
0:00:07.7]} 37... Rxe2 {[%clk 0:00:04.4]} 38. Qg3 {[%clk 0:00:06.3]} 38... Qxg3
{[%clk 0:00:03.8]} 39. hxg3 {[%clk 0:00:07.2]} 39... Ne3 {[%clk 0:00:04]} 40.
Rg1 {[%clk 0:00:06.5]} 40... Nc2 {[%clk 0:00:03.4]} 41. Rb1 {[%clk 0:00:05.5]}
41... Ne3 {[%clk 0:00:03.4]} 42. Kh2 {[%clk 0:00:05]} 42... Ng4+ {[%clk
0:00:03.4]} 43. Kh3 {[%clk 0:00:05.4]} 43... h5 {[%clk 0:00:03.2]} 44. Bg5
{[%clk 0:00:04.6]} 44... Nf2+ {[%clk 0:00:03.3]} 45. Kh2 {[%clk 0:00:04.8]}
45... Ng4+ {[%clk 0:00:03.3]} 46. Kh3 {[%clk 0:00:05.7]} 46... Nf2+ {[%clk
0:00:03.6]} 47. Kh2 {[%clk 0:00:05.8]} 47... Ng4+ {[%clk 0:00:03.4]} 48. Kh3
{[%clk 0:00:06.5]} 1/2-1/2

[Event "*** Titled Tuesday Blitz"]
[Site "Chess.com"]
[Date "2021.04.20"]
[Round "3"]
[White "ClydeHillKid"]
[Black "731291"]
[Result "0-1"]
[WhiteElo "2420"]
[BlackElo "2688"]
[TimeControl "180+1"]
[EndTime "10:28:10 PDT"]
[Termination "731291 won by resignation"]

1. e4 {[%clk 0:02:59.2]} 1... c5 {[%clk 0:02:59.8]} 2. Nf3 {[%clk 0:02:59.3]}
2... e6 {[%clk 0:02:58.1]} 3. d3 {[%clk 0:02:59.5]} 3... d5 {[%clk 0:02:57.6]}
4. Nbd2 {[%clk 0:02:59.8]} 4... Nf6 {[%clk 0:02:55.3]} 5. g3 {[%clk 0:02:59.8]}
5... Nc6 {[%clk 0:02:55.8]} 6. Bg2 {[%clk 0:03:00.3]} 6... Be7 {[%clk
0:02:56.1]} 7. O-O {[%clk 0:03:00.6]} 7... O-O {[%clk 0:02:56.2]} 8. Re1 {[%clk
0:03:01.2]} 8... b6 {[%clk 0:02:56.5]} 9. e5 {[%clk 0:02:59.8]} 9... Nd7 {[%clk
0:02:56.9]} 10. Nf1 {[%clk 0:03:00]} 10... Bb7 {[%clk 0:02:55]} 11. h4 {[%clk
0:02:59]} 11... Qc7 {[%clk 0:02:55.4]} 12. Bf4 {[%clk 0:02:57.3]} 12... Rfc8
{[%clk 0:02:55.9]} 13. N1h2 {[%clk 0:02:57.3]} 13... Qd8 {[%clk 0:02:55.5]} 14.
Ng4 {[%clk 0:02:54.5]} 14... b5 {[%clk 0:02:50.8]} 15. Qd2 {[%clk 0:02:54.3]}
15... Bf8 {[%clk 0:02:49.3]} 16. a4 {[%clk 0:02:35.4]} 16... a6 {[%clk
0:02:48.3]} 17. b3 {[%clk 0:02:31.9]} 17... Nd4 {[%clk 0:02:45.5]} 18. Nxd4
{[%clk 0:02:31.2]} 18... cxd4 {[%clk 0:02:46.4]} 19. Rec1 {[%clk 0:02:26.3]}
19... Bc6 {[%clk 0:02:29]} 20. h5 {[%clk 0:02:16.6]} 20... h6 {[%clk 0:02:22.3]}
21. Nh2 {[%clk 0:02:17]} 21... bxa4 {[%clk 0:02:19.9]} 22. bxa4 {[%clk
0:02:16.6]} 22... Rab8 {[%clk 0:02:19.6]} 23. Nf3 {[%clk 0:02:16.5]} 23... Bb4
{[%clk 0:02:15.9]} 24. Qe2 {[%clk 0:02:13.6]} 24... Bc3 {[%clk 0:02:16]} 25. Ra2
{[%clk 0:02:09.2]} 25... Rb4 {[%clk 0:02:10.4]} 26. g4 {[%clk 0:01:51.7]} 26...
Rxa4 {[%clk 0:02:08.5]} 27. Rxa4 {[%clk 0:01:51]} 27... Bxa4 {[%clk 0:02:09.4]}
28. g5 {[%clk 0:01:51.7]} 28... Bb2 {[%clk 0:02:08.6]} 29. Rb1 {[%clk
0:01:22.2]} 29... Rxc2 {[%clk 0:02:08.2]} 30. Qd1 {[%clk 0:01:22.7]} 30... Nc5
{[%clk 0:02:02.8]} 31. gxh6 {[%clk 0:01:11.8]} 31... Rxf2 {[%clk 0:01:50.7]} 32.
Kxf2 {[%clk 0:00:44.3]} 32... Bxd1 {[%clk 0:01:49.4]} 33. Rxd1 {[%clk
0:00:45.2]} 33... a5 {[%clk 0:01:49.3]} 34. Bf1 {[%clk 0:00:45.1]} 34... a4
{[%clk 0:01:49.3]} 35. Be2 {[%clk 0:00:45.5]} 35... a3 {[%clk 0:01:49.6]} 36.
Rg1 {[%clk 0:00:45.5]} 36... Qf8 {[%clk 0:01:23.6]} 37. hxg7 {[%clk 0:00:18.9]}
37... Qb8 {[%clk 0:01:12.8]} 38. h6 {[%clk 0:00:16.3]} 38... a2 {[%clk
0:01:10.6]} 39. Rh1 {[%clk 0:00:06.4]} 39... a1=Q {[%clk 0:01:08.1]} 40. h7+
{[%clk 0:00:03.3]} 40... Kxg7 {[%clk 0:01:08.7]} 41. Rxa1 {[%clk 0:00:03.2]}
41... Bxa1 {[%clk 0:01:08]} 42. Ng5 {[%clk 0:00:03.6]} 42... Qb2 {[%clk
0:01:02.5]} 43. Kf3 {[%clk 0:00:04]} 43... Qb1 {[%clk 0:01:01]} 44. Bg3 {[%clk
0:00:04.2]} 44... Nxd3 {[%clk 0:00:58.5]} 45. Kg4 {[%clk 0:00:03.7]} 45... Qc2
{[%clk 0:00:56.8]} 46. Bf3 {[%clk 0:00:02.8]} 46... Nc5 {[%clk 0:00:54.2]} 47.
Bh4 {[%clk 0:00:02.5]} 47... Qf5+ {[%clk 0:00:54.4]} 48. Kg3 {[%clk 0:00:01.5]}
48... Ne4+ {[%clk 0:00:53.2]} 49. Bxe4 {[%clk 0:00:01.1]} 49... dxe4 {[%clk
0:00:53.5]} 50. Kh2 {[%clk 0:00:01.5]} 50... Qxg5 {[%clk 0:00:51.4]} 51. Bxg5
{[%clk 0:00:01.8]} 51... Kxh7 {[%clk 0:00:52.3]} 52. Bf4 {[%clk 0:00:01.9]}
52... Kg6 {[%clk 0:00:53.2]} 53. Kg3 {[%clk 0:00:02.8]} 53... Kf5 {[%clk
0:00:53.8]} 54. Bc1 {[%clk 0:00:02.1]} 54... d3 {[%clk 0:00:54.2]} 55. Kf2
{[%clk 0:00:03]} 55... Bxe5 {[%clk 0:00:54.8]} 56. Ke3 {[%clk 0:00:03.7]} 56...
Bf4+ {[%clk 0:00:55.4]} 57. Kd4 {[%clk 0:00:04.3]} 57... Bxc1 {[%clk 0:00:56]}
58. Kc3 {[%clk 0:00:05.2]} 58... Bf4 {[%clk 0:00:56.5]} 59. Kb2 {[%clk 0:00:05]}
59... Ke5 {[%clk 0:00:57]} 60. Kc3 {[%clk 0:00:05.7]} 60... Kd5 {[%clk
0:00:57.3]} 61. Kb2 {[%clk 0:00:06.2]} 61... Kd4 {[%clk 0:00:57.9]} 62. Kb3
{[%clk 0:00:06.9]} 62... e3 {[%clk 0:00:58.1]} 63. Kb2 {[%clk 0:00:07.7]} 63...
e2 {[%clk 0:00:58.4]} 64. Kb3 {[%clk 0:00:08.5]} 64... e1=Q {[%clk 0:00:58.7]}
65. Ka4 {[%clk 0:00:09.1]} 65... Qb1 {[%clk 0:00:57.2]} 0-1